bitfinex/quotes_SOLUSD_20260208
["timestamp","ask_amount","ask_price","bid_price","bid_amount"]
[1770593581682,15.17341667,86.65,86.61,10.97876469]
[1770593581989,4.19465198,86.649,86.61,15.14908182]
[1770593582189,40.37886916,86.679,86.6,10.97876469]
[1770593582190,4.19465198,86.639,86.6,10.97876469]
[1770593582789,4.19465198,86.643,86.592,4.17031713]
[1770593582994,11.53748528,86.674,86.61,10.97876469]
[1770593582995,4.19465198,86.655,86.61,10.97876469]
[1770593583494,40.3811985,86.674,86.61,10.97876469]
[1770593583495,4.19465198,86.649,86.61,10.97876469]
[1770593584086,4.19465198,86.649,86.62,10.97876469]
[1770593584290,4.19465198,86.649,86.61,10.97876469]
[1770593584590,4.19465198,86.649,86.611,11.54587754]
[1770593584791,10.97876469,86.64,86.611,11.54587754]
[1770593584997,15.73559926,86.648,86.611,11.54587754]
[1770593585190,4.19465198,86.647,86.611,11.54587754]
[1770593585995,57.68423936,86.679,86.611,11.54587754]
[1770593585996,4.19465198,86.679,86.63,10.97876469]
[1770593586176,4.19465198,86.659,86.62,10.97876469]
[1770593586992,10.97876469,86.67,86.586,14.68254203]
[1770593586993,4.19465198,86.681,86.64,15.14908182]
[1770593587196,4.19465198,86.669,86.63,10.97876469]
[1770593587375,4.19465198,86.659,86.621,11.54454462]
[1770593588093,4.19465198,86.649,86.61,10.97876469]
[1770593588294,4.19465198,86.649,86.621,11.54454462]
[1770593589199,4.19465198,86.649,86.611,11.54587754]
[1770593589895,4.19465198,86.649,86.62,10.97876469]
[1770593590403,4.19465198,86.661,86.63,10.97876469]
[1770593590878,4.19465198,86.661,86.62,10.97876469]
[1770593591078,4.19465198,86.659,86.62,10.97876469]
[1770593591500,4.19465198,86.659,86.621,11.54454462]
[1770593591876,4.19465198,86.659,86.621,40.40590618]
[1770593592084,4.19465198,86.686,86.65,10.97876469]
[1770593592283,11.53495668,86.693,86.621,40.40590618]
[1770593592284,4.19465198,86.669,86.63,10.97876469]
[1770593592595,4.19465198,86.659,86.621,40.40590618]
[1770593592792,4.19465198,86.659,86.63,10.97876469]
[1770593592977,4.19465198,86.659,86.621,40.40590618]
[1770593594292,4.19465198,86.659,86.63,10.97876469]
[1770593594881,4.38394474,86.682,86.631,4.14780794]
[1770593595099,57.65803671,86.719,86.621,40.40590618]
[1770593595100,4.38394474,86.698,86.66,10.97876469]
[1770593595611,4.38394474,86.698,86.661,11.53921602]
[1770593596101,4.19125278,86.723,86.68,10.97876469]
[1770593596299,4.19125278,86.719,86.68,10.97876469]
[1770593596499,4.19125278,86.709,86.67,10.97876469]
[1770593597003,4.19125278,86.709,86.661,40.38725608]
[1770593597004,4.19125278,86.722,86.69,10.97876469]
[1770593597309,4.19125278,86.722,86.681,4.43666151]
[1770593598002,4.19125278,86.735,86.7,10.97876469]
[1770593598885,15.71916184,86.746,86.71,10.97876469]
[1770593599080,4.19125278,86.729,86.682,40.37747166]
[1770593599386,4.19125278,86.689,86.65,11.54059378]
[1770593599584,10.97876469,86.69,86.58,10.97876469]
[1770593599585,4.19125278,86.669,86.63,10.97876469]
[1770593599987,4.19125278,86.683,86.65,10.97876469]
[1770593600299,57.65997379,86.716,86.632,4.43666151]
[1770593600300,4.19125278,86.679,86.64,10.97876469]
[1770593601390,4.19125278,86.679,86.632,4.43666151]
[1770593601586,4.19125278,86.679,86.64,10.97876469]
[1770593602100,4.19125278,86.679,86.641,40.39657898]
[1770593602305,4.19125278,86.679,86.65,10.97876469]
[1770593602600,4.19125278,86.705,86.66,10.97876469]
[1770593602807,4.19125278,86.705,86.67,10.97876469]
[1770593603305,4.19125278,86.705,86.641,98.10597753]
[1770593603306,4.19125278,86.68,86.65,10.97876469]
[1770593603682,40.36210574,86.715,86.67,10.97876469]
[1770593603683,4.19125278,86.706,86.67,10.97876469]
[1770593603883,4.19125278,86.719,86.68,10.97876469]
[1770593604107,15.72275106,86.719,86.68,10.97876469]
[1770593604401,4.19125278,86.735,86.7,10.97876469]
[1770593604589,4.19125278,86.747,86.71,10.97876469]
[1770593604902,4.19125278,86.739,86.71,10.97876469]
[1770593605292,4.19125278,86.739,86.7,10.97876469]
[1770593605801,4.19125278,86.739,86.71,10.97876469]
[1770593606302,57.61878797,86.778,86.681,98.06070532]
[1770593606303,10.97876469,86.77,86.73,10.97876469]
[1770593606606,4.19125278,86.769,86.72,10.97876469]
[1770593606787,4.19125278,86.759,86.72,10.97876469]
[1770593606988,4.19125278,86.739,86.704,11.53338845]
[1770593607300,4.19125278,86.739,86.681,57.68276784]
[1770593607301,4.19125278,86.719,86.68,10.97876469]
[1770593607504,4.19125278,86.739,86.7,10.97876469]
[1770593607807,4.19125278,86.739,86.706,11.53319304]
[1770593608305,4.19125278,86.764,86.721,11.53123234]
[1770593608483,4.19125278,86.749,86.716,11.53186739]
[1770593608881,4.19125278,86.76,86.73,10.97876469]
[1770593609504,22.50359677,86.77,86.73,10.97876469]
[1770593609697,202.02,86.81,86.721,44.7959747]
[1770593609698,4.19125278,86.796,86.76,10.97876469]
[1770593609887,4.19125278,86.789,86.75,10.97876469]
[1770593610389,4.19125278,86.789,86.76,10.97876469]
[1770593610589,10.97876469,86.8,86.76,10.97876469]
[1770593610795,4.19125278,86.789,86.75,10.97876469]
[1770593610995,4.19125278,86.789,86.751,11.52724464]
[1770593611395,4.19125278,86.811,86.77,10.97876469]
[1770593611610,41.56,86.867,86.79,10.97876469]
[1770593611611,4.19125278,86.822,86.79,10.97876469]
[1770593611792,4.19125278,86.799,86.752,4.43666151]
[1770593611997,4.19125278,86.799,86.76,10.97876469]
[1770593612388,11.52100278,86.798,86.76,10.97876469]
[1770593612593,4.19125278,86.797,86.76,10.97876469]
[1770593612996,4.19125278,86.797,86.761,11.52591602]
[1770593613490,4.19125278,86.809,86.77,10.97876469]
[1770593613907,4.19125278,86.799,86.761,11.52591602]
[1770593614408,4.19125278,86.789,86.751,11.52724464]
[1770593614711,4.19125278,86.779,86.74,10.97876469]
[1770593615093,11.51934723,86.811,86.752,4.43666151]
[1770593615307,4.19125278,86.817,86.78,10.97876469]
[1770593615493,11.51688951,86.829,86.79,10.97876469]
[1770593615691,4.19125278,86.828,86.79,10.97876469]
[1770593615893,0.2,86.83,86.8,10.97876469]
[1770593616103,0.2,86.83,86.791,4.43666151]
[1770593616303,4.19125278,86.829,86.79,10.97876469]
[1770593616515,11.17876469,86.83,86.801,11.5206046]
[1770593616516,0.2,86.83,86.801,11.5206046]
[1770593617313,0.2,86.83,86.81,10.97876469]
[1770593617495,10.97876469,86.85,86.801,40.3221161]
[1770593617496,4.19125278,86.865,86.821,3.72]
[1770593618007,4.19125278,86.879,86.85,10.97876469]
[1770593618194,1e-08,86.88,86.87,10.97876469]
[1770593618508,1e-08,86.88,86.82,10.97876469]
[1770593618509,4.19125278,86.879,86.85,10.97876469]
[1770593618690,1e-08,86.88,86.87,10.97876469]
[1770593620207,15.69727618,86.911,86.87,10.97876469]
[1770593620410,4.19125278,86.899,86.851,11.5139722]
[1770593620714,4.19125278,86.879,86.84,10.97876469]
[1770593621095,4.19125278,86.879,86.822,3.72]
[1770593621096,4.19125278,86.869,86.83,10.97876469]
[1770593621415,4.19125278,86.869,86.84,10.97876469]
[1770593621613,4.19125278,86.869,86.837,11.51576299]
[1770593621815,4.19125278,86.869,86.84,10.97876469]
[1770593622217,4.19125278,86.869,86.831,11.51654964]
[1770593622394,4.19125278,86.859,86.82,10.97876469]
[1770593622599,4.19125278,86.857,86.821,11.51791804]
[1770593623014,4.19125278,86.857,86.788,5.13032502]
[1770593623015,4.19125278,86.839,86.8,10.97876469]
[1770593623219,40.29565496,86.858,86.702,46.13463803]
[1770593623220,4.19125278,86.829,86.79,10.97876469]
[1770593623602,4.19125278,86.829,86.8,10.97876469]
[1770593623796,4.19125278,86.841,86.8,10.97876469]
[1770593624009,4.19125278,86.841,86.766,5.36086188]
[1770593624010,4.19125278,86.857,86.811,3.72]
[1770593624210,4.19125278,86.859,86.821,11.51795072]
[1770593624414,10.97876469,86.87,86.83,10.97876469]
[1770593624618,4.19125278,86.872,86.84,10.97876469]
[1770593624917,4.19125278,86.868,86.83,10.97876469]
[1770593625716,11.51026139,86.879,86.84,10.97876469]
[1770593625900,15.99557223,86.896,86.86,10.97876469]
[1770593626223,4.48748445,86.896,86.86,10.97876469]
[1770593626419,0.2648226,86.912,86.826,5.36086188]
[1770593626420,0.2648226,86.912,86.88,10.97876469]
[1770593626598,10.97876469,86.91,86.87,10.97876469]
[1770593626924,4.48748445,86.908,86.87,10.97876469]
[1770593627226,0.2648226,86.912,86.88,10.97876469]
[1770593627526,4.48748445,86.909,86.87,10.97876469]
[1770593628021,4.48748445,86.909,86.871,11.51132138]
[1770593628522,0.2648226,86.912,86.871,11.51132138]
[1770593628523,0.2648226,86.912,86.88,10.97876469]
[1770593628734,0.2648226,86.912,86.9,10.97876469]
[1770593628930,4.48748445,86.909,86.87,10.97876469]
[1770593629129,4.48748445,86.909,86.788,1.15223302]
[1770593629130,4.48748445,86.889,86.824,3.72]
[1770593629425,4.48748445,86.869,86.83,10.97876469]
[1770593629633,4.48748445,86.859,86.83,22.49545817]
[1770593631003,4.48748445,86.859,86.815,28.79655905]
[1770593631004,16.00052872,86.858,86.827,11.5170764]
[1770593631203,4.48748445,86.857,86.831,11.51662424]
[1770593631434,4.48748445,86.869,86.831,11.51662424]
[1770593631610,4.48748445,86.869,86.84,10.97876469]
[1770593631808,4.48748445,86.869,86.831,11.51662424]
[1770593632107,4.48748445,86.869,86.84,10.97876469]
[1770593632302,4.48748445,86.881,86.85,10.97876469]
[1770593632704,163.4,86.949,86.87,10.97876469]
[1770593632705,4.48748445,86.905,86.87,10.97876469]
[1770593632919,4.48748445,86.903,86.87,10.91420828]
[1770593633121,4.48748445,86.928,86.89,10.91420828]
[1770593633423,11.50403611,86.927,86.9,10.91420828]
[1770593633723,4.48748445,86.942,86.901,3.52]
[1770593633932,4.48748445,86.942,86.92,10.91420828]
[1770593634231,4.68748445,86.95,86.901,3.52]
[1770593634407,4.68748445,86.95,86.871,97.84623176]
[1770593634408,4.48748445,86.929,86.89,10.91420828]
[1770593634611,4.48748445,86.919,86.88,10.91420828]
[1770593634808,45.38380694,86.949,86.871,11.51132138]
[1770593634809,4.48748445,86.909,86.871,40.28962484]
[1770593635027,4.48748445,86.909,86.871,11.51132138]
[1770593635225,4.48748445,86.909,86.88,10.91420828]
[1770593635920,4.48748445,86.899,86.864,11.51221114]
[1770593636130,4.48748445,86.899,86.871,11.51132138]
[1770593636516,22.42036407,86.91,86.871,11.51132138]
[1770593636831,4.48748445,86.909,86.87,10.91420828]
[1770593637143,4.48748445,86.887,86.85,10.91420828]
[1770593637453,4.48748445,86.869,86.83,10.91420828]
[1770593637605,40.281742,86.888,86.776,3.52]
[1770593637606,4.48748445,86.849,86.776,3.52]
[1770593637810,10.91420828,86.85,86.761,40.34070607]
[1770593637811,4.48748445,86.839,86.81,10.91420828]
[1770593638027,4.48748445,86.839,86.82,10.91420828]
[1770593638211,4.48748445,86.839,86.81,10.91420828]
[1770593638412,4.48748445,86.855,86.82,10.91420828]
[1770593638626,97.82708773,86.888,86.84,10.91420828]
[1770593638627,4.48748445,86.873,86.84,10.91420828]
[1770593639430,4.48748445,86.873,86.85,10.91420828]
[1770593639604,4.48748445,86.889,86.85,10.91420828]
[1770593639809,15.99642113,86.889,86.85,10.91420828]
[1770593640033,4.48748445,86.889,86.86,10.91420828]
[1770593640210,11.50734744,86.901,86.87,10.91420828]
[1770593640528,4.48748445,86.889,86.85,10.91420828]
[1770593640735,4.48748445,86.889,86.86,10.91420828]
[1770593641432,4.48748445,86.869,86.82,10.91420828]
[1770593641634,4.48748445,86.869,86.76,10.91420828]
[1770593641635,4.48748445,86.849,86.81,10.91420828]
[1770593641815,4.48748445,86.849,86.83,10.91420828]
[1770593642021,4.48748445,86.849,86.821,11.51795072]
[1770593642229,4.48748445,86.862,86.83,10.91420828]
[1770593642447,4.48748445,86.879,86.83,10.91420828]
[1770593642735,4.48748445,86.881,86.85,10.91420828]
[1770593643157,4.48748445,86.899,86.86,10.91420828]
[1770593643333,4.48748445,86.899,86.838,3.52]
[1770593643334,4.48748445,86.889,86.84,10.91420828]
[1770593643520,10.91420828,86.89,86.85,10.91420828]
[1770593643521,15.99655359,86.888,86.85,10.91420828]
[1770593643915,15.99655359,86.888,86.82,10.91420828]
[1770593643916,4.48748445,86.869,86.83,10.91420828]
[1770593644132,40.281742,86.888,86.828,11.51691268]
[1770593644133,4.48748445,86.859,86.828,11.51691268]
[1770593644533,4.48748445,86.859,86.835,11.51606987]
[1770593644734,4.48748445,86.859,86.823,11.51756619]
[1770593645039,4.48748445,86.859,86.82,10.91420828]
[1770593645257,4.48748445,86.859,86.796,3.52]
[1770593645258,4.48748445,86.849,86.81,10.91420828]
[1770593645419,10.91420828,86.88,86.801,28.80118209]
[1770593645420,4.48748445,86.838,86.801,11.5206046]
[1770593645615,10.91420828,86.86,86.82,10.91420828]
[1770593645824,4.48748445,86.859,86.81,10.91420828]
[1770593646036,5.13032502,86.889,86.796,11.52121745]
[1770593646037,4.48748445,86.839,86.796,11.52121745]
[1770593646242,4.48748445,86.829,86.796,11.52121745]
[1770593646446,4.48748445,86.829,86.78,10.91420828]
[1770593646447,4.48748445,86.819,86.78,10.91420828]
[1770593646640,4.48748445,86.819,86.79,10.91420828]
[1770593647041,4.48748445,86.819,86.76,10.91420828]
[1770593647042,10.91420828,86.84,86.8,10.91420828]
[1770593647239,4.48748445,86.839,86.801,11.5206046]
[1770593647551,4.48748445,86.839,86.8,10.91420828]
[1770593648250,4.48748445,86.829,86.79,10.91420828]
[1770593648454,4.48748445,86.829,86.787,11.52246304]
[1770593648640,4.48748445,86.819,86.787,11.52246304]
[1770593649356,4.48748445,86.832,86.8,10.91420828]
[1770593649552,10.91420828,86.85,86.811,40.31747128]
[1770593649756,4.48748445,86.849,86.811,40.31747128]
[1770593650458,4.48748445,86.849,86.811,11.51927751]
[1770593650642,10.91420828,86.84,86.811,11.51927751]
[1770593650827,40.29519105,86.859,86.8,11.52063723]
[1770593650828,4.48748445,86.829,86.8,11.52063723]
[1770593651656,4.48748445,86.829,86.791,11.52193199]
[1770593652358,4.48748445,86.829,86.8,10.91420828]
[1770593652564,4.48748445,86.829,86.791,40.32676198]
[1770593652762,4.48748445,86.819,86.79,11.52196629]
[1770593653761,4.48748445,86.819,86.781,11.52325969]
[1770593654128,16.00576514,86.819,86.781,11.52325969]
[1770593654329,4.48748445,86.818,86.781,11.52325969]
[1770593654552,4.48748445,86.818,86.79,10.91420828]
[1770593654761,4.48748445,86.834,86.79,10.91420828]
[1770593654934,10.91420828,86.83,86.79,10.91420828]
[1770593655349,4.47543293,86.829,86.79,10.91420828]
[1770593656034,4.47543293,86.829,86.791,11.52193199]
[1770593656240,4.30144094,86.827,86.791,11.52193199]
[1770593656961,4.30144094,86.819,86.768,28.81237929]
[1770593657155,11.51702215,86.828,86.782,11.52309118]
[1770593657156,4.30144094,86.809,86.782,11.52309118]
[1770593657536,4.30144094,86.809,86.775,11.52403125]
[1770593657738,4.30144094,86.809,86.779,11.52341894]
[1770593657949,4.30144094,86.799,86.768,28.81237929]
[1770593658151,4.30144094,86.799,86.77,10.91420828]
[1770593658662,4.30144094,86.799,86.768,28.81237929]
[1770593659033,4.30144094,86.799,86.77,10.91420828]
[1770593659246,4.30144094,86.829,86.79,10.91420828]
[1770593659560,4.30144094,86.809,86.77,10.91420828]
[1770593659763,4.30144094,86.809,86.761,15.04591602]
[1770593659990,4.30144094,86.799,86.761,11.52591602]
[1770593661258,10.91420828,86.79,86.746,28.81970467]
[1770593661569,40.31886461,86.808,86.7,0.1]
[1770593661570,4.30144094,86.769,86.733,28.8239344]
[1770593661743,4.30144094,86.769,86.74,10.91420828]
[1770593661936,10.91420828,86.78,86.741,11.52857356]
[1770593662168,4.30144094,86.788,86.75,10.91420828]
[1770593662340,4.30144094,86.779,86.741,11.52857356]
[1770593662845,4.30144094,86.779,86.74,10.91420828]
[1770593663053,4.30144094,86.779,86.706,3.52]
[1770593663054,4.30144094,86.759,86.706,3.52]
[1770593663353,4.30144094,86.749,86.71,39.74585305]
[1770593663567,4.30144094,86.749,86.727,11.5303507]
[1770593663746,4.30144094,86.749,86.722,11.53102049]
[1770593663947,103.06909679,86.789,86.7,0.1]
[1770593663948,4.30144094,86.737,86.7,0.1]
[1770593664345,4.30144094,86.737,86.7,11.01420828]
[1770593664553,4.30144094,86.737,86.71,10.91420828]
[1770593665245,4.30144094,86.757,86.72,10.91420828]
[1770593666147,4.30144094,86.755,86.721,11.53123234]
[1770593666347,4.30144094,86.749,86.721,11.53123234]
[1770593667149,4.30144094,86.739,86.7,11.01420828]
[1770593668055,4.30144094,86.739,86.713,11.5322336]
[1770593668658,4.30144094,86.739,86.701,11.53389234]
[1770593670368,7.27701702,86.768,86.702,3.52]
[1770593670563,7.27701702,86.768,86.701,11.53389234]
[1770593670564,4.30144094,86.759,86.721,11.53123234]
[1770593670861,7.27701702,86.768,86.721,11.53123234]
[1770593670862,10.91420828,86.75,86.721,11.53123234]
[1770593671157,4.30144094,86.75,86.721,11.53123234]
[1770593671362,10.91420828,86.76,86.721,11.53123234]
[1770593671363,4.30144094,86.761,86.73,10.91420828]
[1770593671693,4.30144094,86.759,86.721,11.53123234]
[1770593671862,4.30144094,86.739,86.715,11.53192118]
[1770593672062,4.30144094,86.729,86.7,0.1]
[1770593672375,4.30144094,86.729,86.701,11.53382983]
[1770593672573,4.30144094,86.729,86.7,11.01420828]
[1770593673161,4.30144094,86.729,86.71,10.91420828]
[1770593673369,4.30144094,86.74,86.71,10.91420828]
[1770593673578,4.30144094,86.739,86.7,11.01420828]
[1770593674278,4.30144094,86.752,86.72,10.91420828]
[1770593674488,4.30144094,86.739,86.7,0.1]
[1770593674668,4.30144094,86.729,86.7,0.1]
[1770593675603,10.91420828,86.76,86.672,57.68875761]
[1770593675604,4.30144094,86.709,86.672,11.53765952]
[1770593675886,4.30144094,86.709,86.591,46.19368167]
[1770593675887,4.30144094,86.679,86.63,10.91420828]
[1770593676193,4.30144094,86.678,86.648,11.54090032]
[1770593676479,4.30144094,86.678,86.643,11.54160287]
[1770593676663,4.30144094,86.669,86.641,11.54187971]
[1770593677287,4.30144094,86.669,86.631,11.54312456]
[1770593677501,4.30144094,86.659,86.603,3.62]
[1770593677659,4.30144094,86.659,86.54,1.25553501]
[1770593677660,4.30144094,86.639,86.601,11.54721077]
[1770593677859,4.30144094,86.619,86.597,11.5477238]
[1770593678091,4.30144094,86.63,86.601,11.54721077]
[1770593678477,4.30144094,86.629,86.601,11.54721077]
[1770593678668,4.30144094,86.629,86.591,11.5485443]
[1770593678892,4.30144094,86.619,86.591,11.5485443]
[1770593679292,4.30144094,86.649,86.61,10.91420828]
[1770593679493,4.30144094,86.649,86.62,10.91420828]
[1770593679694,4.30144094,86.647,86.61,10.91420828]
[1770593679988,11.54094728,86.648,86.591,40.41990506]
[1770593679989,4.30144094,86.639,86.6,10.91420828]
[1770593680199,11.54094728,86.648,86.585,11.54928785]
[1770593680200,4.30144094,86.619,86.585,11.54928785]
[1770593680506,4.30144094,86.619,86.59,11.54863915]
[1770593681012,4.30144094,86.619,86.59,10.91420828]
[1770593681310,4.30144094,86.619,86.581,40.42457351]
[1770593681605,4.30144094,86.619,86.581,11.54987814]
[1770593681812,4.30144094,86.617,86.569,28.87854995]
[1770593682106,11.54494446,86.618,86.566,11.55181693]
[1770593682107,4.30144094,86.599,86.566,11.55181693]
[1770593682321,4.30144094,86.599,86.57,10.91420828]
[1770593682537,4.30144094,86.599,86.571,11.55120145]
[1770593682890,4.30144094,86.599,86.561,11.55254675]
[1770593683412,4.30144094,86.619,86.59,10.91420828]
[1770593683711,4.30144094,86.609,86.57,10.91420828]
[1770593684117,28.85808913,86.631,86.561,11.55254675]
[1770593684118,4.30144094,86.599,86.561,11.55254675]
[1770593684499,4.30144094,86.599,86.57,10.91420828]
[1770593684701,4.30144094,86.599,86.561,11.55254675]
[1770593685493,4.30144094,86.599,86.57,10.91420828]
[1770593685923,11.54515712,86.617,86.526,3.62]
[1770593685924,10.91420828,86.58,86.526,3.62]
[1770593686086,4.44453251,86.569,86.528,28.89217658]
[1770593686305,4.44453251,86.569,86.537,11.55568328]
[1770593686501,4.44453251,86.569,86.546,11.5545182]
[1770593686706,4.44453251,86.569,86.54,11.01420828]
[1770593686932,4.44453251,86.569,86.54,0.1]
[1770593687809,4.44453251,86.569,86.54,11.01420828]
[1770593688425,4.44453251,86.559,86.531,11.55655198]
[1770593688708,4.44453251,86.559,86.525,11.55732839]
[1770593688909,11.5516126,86.568,86.52,0.1]
[1770593688910,4.44453251,86.549,86.52,0.1]
[1770593689329,4.44453251,86.547,86.5,0.1]
[1770593689536,4.44453251,86.519,86.5,0.1]
[1770593689914,4.44453251,86.509,86.463,11.56557532]
[1770593690120,40.43998705,86.548,86.46,11.01420828]
[1770593690121,4.44453251,86.489,86.46,0.1]
[1770593690429,4.44453251,86.479,86.46,0.1]
[1770593690809,4.44453251,86.493,86.46,0.1]
[1770593691015,4.44453251,86.469,86.44,11.66871245]
[1770593691245,10.91420828,86.48,86.451,11.56713715]
[1770593691454,4.44453251,86.479,86.441,11.56858435]
[1770593692019,4.44453251,86.478,86.44,0.1]
[1770593692258,4.44453251,86.469,86.44,0.1]
[1770593692725,4.44453251,86.481,86.45,10.91420828]
[1770593692921,4.44453251,86.479,86.441,11.56858435]
[1770593693537,4.44453251,86.469,86.44,0.1]
[1770593693741,4.44453251,86.469,86.416,4.08228998]
[1770593693742,4.44453251,86.449,86.426,11.57046624]
[1770593693955,4.44453251,86.449,86.419,11.57150808]
[1770593694138,4.44453251,86.449,86.414,11.57208562]
[1770593694459,11.02021817,86.43,86.39,11.02021817]
[1770593694618,4.44453251,86.429,86.39,11.02021817]
[1770593694824,40.47272138,86.478,86.377,82.42741201]
[1770593694825,4.44453251,86.419,86.377,82.42741201]
[1770593695039,4.44453251,86.419,86.37,11.02021817]
[1770593695040,11.02021817,86.41,86.37,11.02021817]
[1770593695351,4.40008718,86.379,86.34,11.02021817]
[1770593695655,4.40008718,86.379,86.28,11.02021817]
[1770593695656,11.02021817,86.36,86.324,11.58426393]
[1770593695853,11.02021817,86.37,86.331,4.08228998]
[1770593696055,11.02021817,86.4,86.36,11.02021817]
[1770593696226,11.02021817,86.4,86.351,4.08228998]
[1770593696747,11.02021817,86.41,86.371,4.08228998]
[1770593697058,11.02021817,86.43,86.381,4.08228998]
[1770593697235,4.40008718,86.474,86.421,4.08228998]
[1770593697432,11.56617587,86.459,86.421,4.08228998]
[1770593697634,11.02021817,86.43,86.39,4.08228998]
[1770593697825,11.02021817,86.43,86.371,28.94464864]
[1770593697826,11.02021817,86.41,86.382,11.5763827]
[1770593698029,11.02021817,86.41,86.374,11.57744491]
[1770593698227,11.02021817,86.4,86.38,11.57674352]
[1770593698454,11.02021817,86.4,86.363,4.08228998]
[1770593698634,15.42030535,86.41,86.379,11.57684632]
[1770593698830,11.02021817,86.4,86.379,11.57684632]
[1770593699052,11.02021817,86.42,86.375,4.08228998]
[1770593699247,11.02021817,86.41,86.377,11.5771409]
[1770593699440,11.02021817,86.41,86.371,4.08228998]
[1770593700239,11.02021817,86.42,86.371,4.08228998]
[1770593700434,11.02021817,86.41,86.371,4.08228998]
[1770593700636,11.02021817,86.43,86.381,4.08228998]
[1770593700948,11.02021817,86.43,86.391,4.08228998]
[1770593701126,11.02021817,86.44,86.401,4.08228998]
[1770593701339,11.56791523,86.446,86.357,69.47902311]
[1770593701340,4.40008718,86.409,86.359,4.08228998]
[1770593701538,5.13032502,86.435,86.361,4.08228998]
[1770593701760,5.13032502,86.435,86.36,40.52802222]
[1770593701761,11.02021817,86.44,86.4,11.02021817]
[1770593701952,11.02021817,86.48,86.431,4.08228998]
[1770593702145,11.02021817,86.52,86.451,4.08228998]
[1770593702146,11.02021817,86.5,86.451,4.08228998]
[1770593702343,11.02021817,86.5,86.408,5.36086188]
[1770593702344,4.40008718,86.529,86.471,4.08228998]
[1770593702564,4.40008718,86.529,86.408,5.36086188]
[1770593702565,4.40008718,86.479,86.43,11.02021817]
[1770593702755,11.02021817,86.52,86.441,4.08228998]
[1770593702756,11.02021817,86.48,86.441,4.08228998]
[1770593702957,11.02021817,86.5,86.451,4.08228998]
[1770593703157,11.02021817,86.49,86.447,4.08228998]
[1770593703459,11.02021817,86.49,86.451,15.64953616]
[1770593703651,11.02021817,86.49,86.452,4.08228998]
[1770593703853,11.02021817,86.49,86.451,11.56724618]
[1770593703854,11.02021817,86.52,86.471,4.08228998]
[1770593704053,11.22021817,86.58,86.491,4.08228998]
[1770593704054,11.02021817,86.54,86.491,4.08228998]
[1770593704260,11.02021817,86.54,86.501,4.08228998]
[1770593704566,11.02021817,86.55,86.511,4.08228998]
[1770593704763,11.02021817,86.56,86.521,4.08228998]
[1770593705661,11.55134573,86.57,86.522,11.55775409]
[1770593705871,11.02021817,86.57,86.531,4.08228998]
[1770593706747,11.22021817,86.58,86.531,4.08228998]
[1770593706940,11.02021817,86.55,86.522,11.55775409]
[1770593707141,15.42030535,86.56,86.522,11.55775409]
[1770593708066,0.2,86.58,86.541,4.08228998]
[1770593708248,11.02021817,86.57,86.528,4.08228998]
[1770593708667,11.22021817,86.58,86.54,11.02021817]
[1770593708879,11.02021817,86.55,86.522,11.55775409]
[1770593709171,11.02021817,86.55,86.515,4.08228998]
[1770593709172,11.02021817,86.54,86.516,11.55849639]
[1770593709350,11.02021817,86.54,86.51,11.55935474]
[1770593709761,11.02021817,86.56,86.521,4.08228998]
[1770593709962,11.02021817,86.56,86.522,11.55775409]
[1770593710266,11.02021817,86.56,86.523,4.08228998]
[1770593710959,11.02021817,86.57,86.531,4.08228998]
[1770593711149,11.02021817,86.55,86.516,11.5584654]
[1770593711350,11.02021817,86.53,86.503,11.56022528]
[1770593711677,11.02021817,86.51,86.46,15.10250815]
[1770593711877,37.86,86.561,86.413,80.07148933]
[1770593711878,11.02021817,86.48,86.433,4.08228998]
[1770593712174,11.02021817,86.48,86.435,4.08228998]
[1770593712679,11.02021817,86.47,86.435,4.08228998]
[1770593712851,11.02021817,86.48,86.435,4.08228998]
[1770593713049,11.02021817,86.46,86.424,11.5707478]
[1770593713272,11.02021817,86.44,86.411,11.57257441]
[1770593713458,11.02021817,86.47,86.434,11.56952125]
[1770593713646,11.02021817,86.46,86.434,11.56952125]
[1770593713872,11.02021817,86.46,86.433,11.56962611]
[1770593714052,11.02021817,86.46,86.423,4.08228998]
[1770593714369,4.40008718,86.51,86.442,4.08228998]
[1770593714556,4.40008718,86.524,86.48,11.02021817]
[1770593714753,11.02021817,86.51,86.471,4.08228998]
[1770593715047,11.02021817,86.53,86.491,4.16678828]
[1770593715263,11.02021817,86.53,86.49,11.02021817]
[1770593715459,4.21592644,86.539,86.5,11.02021817]
[1770593715775,11.02021817,86.54,86.501,4.16678828]
[1770593715964,11.02021817,86.55,86.51,11.02021817]
[1770593716273,11.02021817,86.56,86.52,11.02021817]
[1770593716472,36.96,86.567,86.521,4.35899359]
[1770593716655,11.02021817,86.56,86.521,4.35899359]
[1770593716977,17.15426306,86.56,86.521,4.35899359]
[1770593717474,17.35426306,86.58,86.541,4.35899359]
[1770593717777,17.15426306,86.57,86.526,4.35899359]
[1770593717955,28.90431444,86.58,86.541,4.35899359]
[1770593718276,11.75005138,86.58,86.55,17.15426306]
[1770593718472,0.2,86.58,86.55,17.15426306]
[1770593718667,0.2,86.58,86.56,17.15426306]
[1770593718859,28.86439738,86.612,86.542,40.44279078]